fUSD/lending_fUSD_20250416
["ID","MTS","AMOUNT","RATE_DAILY","PERIOD"]
[358167975,1744814902211,-1250.11,0.00054821,120]
[358167976,1744814902236,-1250.11,0.00054821,120]
[358167977,1744814902263,-1250.11,0.00054821,120]
[358167978,1744814902289,-1250.11,0.00054821,120]
[358167979,1744814902317,-1250.11,0.00054821,120]
[358167980,1744814902343,-1250.11,0.00054821,120]
[358167981,1744814902370,-1250.11,0.00054821,120]
[358167982,1744814902397,-1250.11,0.00054821,120]
[358167983,1744814902423,-1250.11,0.00054821,120]
[358167984,1744814902449,-1250.3437735,0.00054821,120]
[358167985,1744814902478,-259530.390832,0.00054888,30]
[358167986,1744814902508,-9221.52396588,0.00054898,120]
[358167987,1744814902534,-11218.55742082,0.000549,120]
[358167988,1744814902563,-200.0,0.00054903,120]
[358167989,1744814902590,-1348.32846432,0.00054906,120]
[358167990,1744814902616,-11218.55742082,0.00054909,120]
[358167991,1744814902641,-1348.32846432,0.00054914,120]
[358167992,1744814902668,-24827.72989181,0.00054918,120]
[358167993,1744814902694,-310694.6020837,0.00054925,119]
[358167994,1744814902724,-5314.55372295,0.00054926,120]
[358167995,1744814902751,-9221.52396588,0.00054933,120]
[358167996,1744814902777,-1572.97055482,0.00054936,120]
[358167997,1744814902805,-11218.55742082,0.00054943,120]
[358167998,1744814902832,-24827.72989181,0.00054946,120]
[358167999,1744814903060,-200.0,0.00054951,120]
[358168000,1744814903088,-1572.97055482,0.00054953,120]
[358168001,1744814903115,-200.0,0.00054954,120]
[358168002,1744814903140,-9221.52396588,0.00054956,120]
[358168003,1744814903167,-200.0,0.0005496,120]
[358168004,1744814903193,-24827.72989181,0.00054967,120]
[358168005,1744814903218,-1348.32846432,0.00054969,120]
[358168006,1744814903245,-310694.6020837,0.00054973,119]
[358168007,1744814903272,-310694.6020837,0.00054979,119]
[358168008,1744814903299,-5314.55372295,0.0005498,120]
[358168009,1744814903328,-1572.97055482,0.00054988,120]
[358168010,1744814903356,-5314.55372295,0.00054999,120]
[358168011,1744814903384,-50000.0,0.00055,55]
[358168012,1744814903413,-50000.0,0.00055,65]
[358168013,1744814903439,-699.02279208,0.00055,120]
[358168014,1744814903466,-189515.41283014,0.00055,120]
[358168015,1744814903496,-1000000.0,0.00055,120]
[358168016,1744814903524,-1000000.0,0.00055,120]
[358168017,1744814903554,-1000000.0,0.00055,120]
[358168018,1744814903582,-1000.0,0.00055,120]
[358168019,1744814903608,-1068.0,0.00055,120]
[358168020,1744814903635,-2584.0,0.00055,120]
[358168021,1744814903662,-209.0,0.00055,30]
[358168022,1744814903688,-214.0,0.00055,30]
[358168023,1744814903717,-209.0,0.00055,30]
[358168024,1744814903748,-964045.83652115,0.00055,120]
[358168026,1744814908038,-500.0,0.00054794,120]
[358168027,1744814908065,-500.0,0.00054794,120]
[358168028,1744814908091,-504.14340415,0.00054794,120]
[358168029,1744814908118,-530.45394948,0.00054794,120]
[358168030,1744814908146,-500.0,0.00054794,120]
[358168031,1744814908174,-904.33,0.00054794,120]
[358168032,1744814908200,-500.0,0.00054794,120]
[358168033,1744814908227,-500.0,0.00054794,120]
[358168034,1744814908256,-35954.16347885,0.00055,120]
[358168035,1744814908284,-1000000.0,0.00055,120]
[358168036,1744814908312,-1000000.0,0.00055,120]
[358168037,1744814908342,-1000000.0,0.00055,120]
[358168038,1744814908368,-210.0,0.00055,30]
[358168039,1744814908402,-1068.0,0.00055,120]
[358168040,1744814908439,-210.0,0.00055,30]
[358168041,1744814908477,-151.831469,0.00055068,120]
[358168042,1744814908515,-1243.06979,0.00055068,120]
[358168043,1744814908549,-500.0,0.00055068,120]
[358168044,1744814908587,-500.0,0.00055068,120]
[358168045,1744814908623,-500.0,0.00055068,120]
[358168046,1744814908659,-986.92,0.00055068,120]
[358168047,1744814908697,-2212.52,0.00055068,120]
[358168048,1744814908733,-500.0,0.00055068,120]
[358168049,1744814908771,-408.05536029,0.00055068,120]
[358168050,1744814908806,-6585.42,0.00055068,90]
[358168051,1744814908838,-500.0,0.00055068,120]
[358168052,1744814908873,-519.65897525,0.00055068,120]
[358168053,1744814908903,-500.0,0.00055068,120]
[358168054,1744814908936,-598.38320752,0.00055068,120]
[358168055,1744814908967,-509.11724454,0.00055068,120]
[358168056,1744814909001,-500.0,0.00055068,120]
[358168057,1744814909032,-500.0,0.00055068,120]
[358168058,1744814909065,-500.0,0.00055068,120]
[358168059,1744814909098,-1306.35,0.00055068,120]
[358168060,1744814909129,-441.40910543,0.00055068,120]
[358168061,1744814909160,-500.0,0.00055068,120]
[358168062,1744814909192,-500.0,0.00055068,120]
[358168063,1744814909225,-500.0,0.00055068,120]
[358168064,1744814909258,-500.0,0.00055068,120]
[358168065,1744814909290,-574.50959246,0.00055068,120]
[358168066,1744814909322,-532.8463897,0.00055068,120]
[358168067,1744814909353,-500.0,0.00055068,120]
[358168068,1744814909386,-500.0,0.00055068,120]
[358168069,1744814909420,-500.0,0.00055068,120]
[358168070,1744814909455,-1665.11,0.00055068,120]
[358168071,1744814909493,-500.0,0.00055068,120]
[358168072,1744814909527,-508.17698784,0.00055068,120]
[358168073,1744814909562,-536.79491445,0.00055068,120]
[358168074,1744814909598,-500.0,0.00055068,120]
[358168075,1744814909630,-500.0,0.00055068,120]
[358168076,1744814909662,-500.0,0.00055068,120]
[358168077,1744814909695,-500.0,0.00055068,120]
[358168078,1744814909729,-500.0,0.00055068,120]
[358168079,1744814909762,-575.03602074,0.00055068,120]
[358168080,1744814909794,-500.0,0.00055068,120]
[358168081,1744814909827,-500.0,0.00055068,120]
[358168082,1744814909861,-500.0,0.00055068,120]
[358168083,1744814909894,-591.591846,0.00055068,120]
[358168084,1744814909930,-500.0,0.00055068,120]
[358168085,1744814909960,-512.74048674,0.00055068,120]
[358168086,1744814909985,-500.0,0.00055068,120]
[358168087,1744814910013,-582.94325206,0.00055068,120]
[358168088,1744814910040,-500.0,0.00055068,120]
[358168089,1744814910070,-251.51261244,0.00055068,120]
[358168090,1744814910100,-500.0,0.00055068,120]
[358168091,1744814910132,-500.0,0.00055068,120]
[358168092,1744814910163,-300.0,0.00055068,120]
[358168093,1744814910192,-500.0,0.00055068,120]
[358168094,1744814910220,-539.38290818,0.00055068,120]
[358168095,1744814910247,-500.0,0.00055068,120]
[358168096,1744814910273,-500.0,0.00055068,120]
[358168097,1744814910299,-531.8446684,0.00055068,120]
[358168098,1744814910326,-517.50712047,0.00055068,120]
[358168099,1744814910352,-507.93868005,0.00055068,120]
[358168100,1744814910378,-500.0,0.00055068,120]
[358168101,1744814910404,-1265.89,0.00055068,120]
[358168102,1744814910430,-500.0,0.00055068,120]
[358168103,1744814910456,-214.12173371,0.00055068,120]
[358168104,1744814910483,-550.54285643,0.00055068,120]
[358168105,1744814910512,-506.61592725,0.00055068,120]
[358168106,1744814910911,-500.0,0.00055068,120]
[358168107,1744814910937,-500.0,0.00055068,120]
[358168108,1744814910964,-500.0,0.00055068,120]
[358168109,1744814910990,-500.0,0.00055068,120]
[358168110,1744814911016,-523.12681517,0.00055068,120]
[358168111,1744814911041,-500.0,0.00055068,120]
[358168112,1744814911065,-576.53095985,0.00055068,120]
[358168113,1744814911090,-613.90574591,0.00055068,120]
[358168114,1744814911114,-573.77922684,0.00055068,120]
[358168115,1744814911142,-500.0,0.00055068,120]
[358168116,1744814911168,-500.0,0.00055068,120]
[358168117,1744814911194,-519.00870903,0.00055068,120]
[358168118,1744814911220,-500.0,0.00055068,120]
[358168119,1744814911246,-500.0,0.00055068,120]
[358168120,1744814911273,-500.0,0.00055068,120]
[358168121,1744814911302,-500.0,0.00055068,120]
[358168122,1744814911331,-500.0,0.00055068,120]
[358168123,1744814911359,-500.0,0.00055068,120]
[358168124,1744814911386,-500.0,0.00055068,120]
[358168125,1744814911413,-500.0,0.00055068,120]
[358168126,1744814911440,-196.37737445,0.00055068,120]
[358168127,1744814911467,-500.0,0.00055068,120]
[358168128,1744814911495,-500.0,0.00055068,120]
[358168129,1744814911522,-532.61818752,0.00055068,120]
[358168130,1744814911548,-500.0,0.00055068,120]
[358168131,1744814911576,-500.0,0.00055068,120]
[358168132,1744814911603,-500.0,0.00055068,120]
[358168133,1744814911629,-500.0,0.00055068,120]
[358168134,1744814911655,-500.0,0.00055068,120]
[358168135,1744814911682,-500.0,0.00055068,120]
[358168136,1744814911709,-500.0,0.00055068,120]
[358168137,1744814911736,-500.0,0.00055068,120]
[358168138,1744814911762,-368.07536193,0.00055068,120]
[358168139,1744814911788,-500.0,0.00055068,120]
[358168140,1744814911814,-540.59696081,0.00055068,120]
[358168141,1744814911839,-528.17940449,0.00055068,120]
[358168142,1744814911864,-500.0,0.00055068,120]
[358168143,1744814911890,-500.0,0.00055068,120]
[358168144,1744814911915,-500.0,0.00055068,120]
[358168145,1744814911942,-500.0,0.00055068,120]
[358168146,1744814911968,-500.0,0.00055068,120]
[358168147,1744814911994,-500.0,0.00055068,120]
[358168148,1744814912020,-534.1468364,0.00055068,120]
[358168149,1744814912046,-500.0,0.00055068,120]
[358168150,1744814912073,-500.0,0.00055068,120]
[358168151,1744814912100,-500.0,0.00055068,120]
[358168152,1744814912126,-500.0,0.00055068,120]
[358168153,1744814912152,-500.0,0.00055068,120]
[358168154,1744814912177,-500.0,0.00055068,120]
[358168155,1744814912203,-633.71523365,0.00055068,120]
[358168156,1744814912228,-500.0,0.00055068,120]
[358168157,1744814912253,-500.0,0.00055068,120]
[358168158,1744814912279,-500.0,0.00055068,120]
[358168159,1744814912305,-500.0,0.00055068,120]
[358168160,1744814912332,-539.32962516,0.00055068,120]
[358168161,1744814912359,-504.19049364,0.00055068,120]
[358168162,1744814912385,-514.41541208,0.00055068,120]
[358168163,1744814912411,-500.0,0.00055068,120]
[358168164,1744814912437,-500.0,0.00055068,120]
[358168165,1744814912464,-318.75767492,0.00055068,120]
[358168166,1744814912491,-500.0,0.00055068,120]
[358168167,1744814912517,-500.0,0.00055068,120]
[358168168,1744814912545,-509.69575857,0.00055068,120]
[358168169,1744814912571,-500.0,0.00055068,120]
[358168170,1744814912597,-500.0,0.00055068,120]
[358168171,1744814912621,-500.0,0.00055068,120]
[358168172,1744814912647,-500.0,0.00055068,120]
[358168173,1744814912673,-500.0,0.00055068,120]
[358168174,1744814912699,-500.0,0.00055068,120]
[358168175,1744814912728,-765.33,0.00055068,120]
[358168176,1744814912753,-503.44774904,0.00055068,120]
[358168177,1744814912779,-539.45090775,0.00055068,120]
[358168178,1744814912804,-500.0,0.00055068,120]
[358168179,1744814912831,-500.0,0.00055068,120]
[358168180,1744814912859,-500.0,0.00055068,120]
[358168181,1744814912885,-500.0,0.00055068,120]
[358168182,1744814912911,-500.0,0.00055068,120]
[358168183,1744814912937,-509.19863134,0.00055068,120]
[358168184,1744814912962,-500.0,0.00055068,120]
[358168185,1744814912988,-500.0,0.00055068,120]
[358168186,1744814913014,-500.0,0.00055068,120]
[358168187,1744814913041,-500.0,0.00055068,120]
[358168188,1744814913067,-500.0,0.00055068,120]
[358168189,1744814913093,-567.91503695,0.00055068,120]
[358168190,1744814913120,-637.3,0.00055068,120]
[358168191,1744814913147,-500.0,0.00055068,120]
[358168192,1744814913174,-500.0,0.00055068,120]
[358168193,1744814913202,-500.0,0.00055068,120]
[358168194,1744814913229,-539.53883501,0.00055068,120]
[358168195,1744814913256,-500.0,0.00055068,120]
[358168196,1744814913282,-500.0,0.00055068,120]
[358168197,1744814913309,-584.73086934,0.00055068,120]
[358168198,1744814913337,-500.0,0.00055068,120]
[358168199,1744814913364,-500.0,0.00055068,120]
[358168200,1744814913392,-500.0,0.00055068,120]
[358168201,1744814913419,-580.57332063,0.00055068,120]
[358168202,1744814913446,-534.65277324,0.00055068,120]
[358168203,1744814913472,-500.0,0.00055068,120]
[358168204,1744814913500,-500.0,0.00055068,120]
[358168205,1744814913527,-500.0,0.00055068,120]
[358168206,1744814913753,-500.0,0.00055068,120]
[358168207,1744814913782,-500.0,0.00055068,120]
[358168208,1744814913810,-500.0,0.00055068,120]
[358168209,1744814913837,-520.85149645,0.00055068,120]
[358168210,1744814913865,-500.0,0.00055068,120]
[358168211,1744814913892,-502.15322945,0.00055068,120]
[358168212,1744814913921,-500.0,0.00055068,120]
[358168213,1744814913949,-500.0,0.00055068,120]
[358168214,1744814913976,-530.05985923,0.00055068,120]
[358168215,1744814914004,-500.0,0.00055068,120]
[358168216,1744814914031,-500.0,0.00055068,120]
[358168217,1744814914058,-500.0,0.00055068,120]
[358168218,1744814914087,-500.0,0.00055068,120]
[358168219,1744814914115,-500.0,0.00055068,120]
[358168220,1744814914143,-500.0,0.00055068,120]
[358168221,1744814914172,-500.0,0.00055068,120]
[358168222,1744814914202,-500.0,0.00055068,120]
[358168223,1744814914230,-500.0,0.00055068,120]
[358168224,1744814914259,-500.0,0.00055068,120]
[358168225,1744814914288,-500.0,0.00055068,120]
[358168226,1744814914319,-549.64827025,0.00055068,120]
[358168227,1744814914348,-513.49183024,0.00055068,120]
[358168228,1744814914378,-500.0,0.00055068,120]
[358168229,1744814914408,-500.0,0.00055068,120]
[358168230,1744814914437,-500.0,0.00055068,120]
[358168231,1744814914466,-500.0,0.00055068,120]
[358168232,1744814914496,-500.0,0.00055068,120]
[358168233,1744814914527,-392.92921634,0.00055068,120]
[358168234,1744814914557,-500.0,0.00055068,120]
[358168235,1744814914586,-344.54529613,0.00055068,120]
[358168236,1744814914613,-500.0,0.00055068,120]
[358168237,1744814914640,-500.0,0.00055068,120]
[358168238,1744814914669,-500.0,0.00055068,120]
[358168239,1744814914697,-522.62990726,0.00055068,120]
[358168240,1744814914728,-557.00685599,0.00055068,120]
[358168241,1744814914757,-500.0,0.00055068,120]
[358168242,1744814914786,-563.52100788,0.00055068,120]
[358168243,1744814914814,-500.0,0.00055068,120]
[358168244,1744814914842,-557.40680727,0.00055068,120]
[358168245,1744814914870,-500.0,0.00055068,120]
[358168246,1744814914898,-500.0,0.00055068,120]
[358168247,1744814914926,-500.0,0.00055068,120]
[358168248,1744814914953,-500.0,0.00055068,120]
[358168249,1744814914982,-500.0,0.00055068,120]
[358168250,1744814915010,-500.0,0.00055068,120]
[358168251,1744814915038,-383.16062151,0.00055068,120]
[358168252,1744814915066,-500.0,0.00055068,120]
[358168253,1744814915094,-500.0,0.00055068,120]
[358168254,1744814915121,-500.0,0.00055068,120]
[358168255,1744814915148,-600.65247009,0.00055068,120]
[358168256,1744814915176,-525.92639717,0.00055068,120]
[358168257,1744814915204,-500.0,0.00055068,120]
[358168258,1744814915232,-165.20153337,0.00055068,120]
[358168259,1744814915259,-381.53631408,0.00055068,120]
[358168260,1744814915286,-500.0,0.00055068,120]
[358168261,1744814915315,-500.0,0.00055068,120]
[358168262,1744814915344,-595.64184815,0.00055068,120]
[358168263,1744814915372,-544.63589847,0.00055068,120]
[358168264,1744814915399,-500.0,0.00055068,120]
[358168265,1744814915426,-613.9810743,0.00055068,120]
[358168266,1744814915453,-500.0,0.00055068,120]
[358168267,1744814915479,-626.98612138,0.00055068,120]
[358168268,1744814915513,-500.0,0.00055068,120]
[358168269,1744814915553,-500.0,0.00055068,120]
[358168270,1744814915585,-500.0,0.00055068,120]
[358168271,1744814915614,-526.47728846,0.00055068,120]
[358168272,1744814915644,-500.0,0.00055068,120]
[358168273,1744814915670,-500.0,0.00055068,120]
[358168274,1744814915696,-500.0,0.00055068,120]
[358168275,1744814915722,-500.0,0.00055068,120]
[358168276,1744814915748,-1224.51,0.00055068,120]
[358168277,1744814915777,-500.0,0.00055068,120]
[358168278,1744814915803,-500.0,0.00055068,120]
[358168279,1744814915829,-500.0,0.00055068,120]
[358168280,1744814915853,-500.0,0.00055068,120]
[358168281,1744814915878,-571.51841544,0.00055068,120]
[358168282,1744814915904,-532.38301285,0.00055068,120]
[358168283,1744814915930,-500.0,0.00055068,120]
[358168284,1744814915956,-475.48035435,0.00055068,120]
[358168285,1744814915982,-500.0,0.00055068,120]
[358168286,1744814916008,-500.0,0.00055068,120]
[358168287,1744814916034,-500.0,0.00055068,120]
[358168288,1744814916062,-500.0,0.00055068,120]
[358168289,1744814916088,-500.0,0.00055068,120]
[358168290,1744814916115,-500.0,0.00055068,120]
[358168291,1744814916141,-500.0,0.00055068,120]
[358168292,1744814916168,-500.0,0.00055068,120]
[358168293,1744814916195,-500.0,0.00055068,120]
[358168294,1744814916223,-500.0,0.00055068,120]
[358168295,1744814916252,-500.0,0.00055068,120]
[358168296,1744814916282,-1172.67,0.00055068,120]
[358168297,1744814916312,-557.47769942,0.00055068,120]
[358168298,1744814916340,-570.18588961,0.00055068,120]
[358168299,1744814916367,-500.0,0.00055068,120]
[358168300,1744814916393,-500.0,0.00055068,120]
[358168301,1744814916420,-992.3,0.00055068,120]
[358168302,1744814916446,-544.8493455,0.00055068,120]
[358168303,1744814916473,-500.0,0.00055068,120]
[358168304,1744814916501,-507.48612276,0.00055068,120]
[358168305,1744814916526,-500.0,0.00055068,120]
[358168306,1744814916553,-354.60093475,0.00055068,120]
[358168307,1744814916581,-572.34369419,0.00055068,120]
[358168308,1744814916610,-500.0,0.00055068,120]
[358168309,1744814916637,-500.0,0.00055068,120]
[358168310,1744814916664,-500.0,0.00055068,120]
[358168311,1744814916850,-500.0,0.00055068,120]
[358168312,1744814916877,-500.0,0.00055068,120]
[358168313,1744814916903,-500.0,0.00055068,120]
[358168314,1744814916930,-573.30665677,0.00055068,120]
[358168315,1744814916957,-154.34613802,0.00055068,120]
[358168316,1744814916984,-500.0,0.00055068,120]
[358168317,1744814917011,-1291.19,0.00055068,120]
[358168318,1744814917038,-500.0,0.00055068,120]
[358168319,1744814917067,-500.0,0.00055068,120]
[358168320,1744814917093,-1010.57,0.00055068,120]
[358168321,1744814917118,-320.5777762,0.00055068,120]
[358168322,1744814917144,-500.0,0.00055068,120]
[358168323,1744814917170,-500.0,0.00055068,120]
[358168324,1744814917197,-500.0,0.00055068,120]
[358168325,1744814917224,-2405.34,0.00055068,120]
[358168326,1744814917251,-500.0,0.00055068,120]
[358168327,1744814917277,-500.0,0.00055068,120]
[358168328,1744814917303,-500.0,0.00055068,120]
[358168329,1744814917330,-1984.48,0.00055068,120]
[358168330,1744814917356,-500.0,0.00055068,120]
[358168331,1744814917381,-500.0,0.00055068,120]
[358168332,1744814917407,-500.0,0.00055068,120]
[358168333,1744814917434,-1154.69,0.00055068,120]
[358168334,1744814917460,-1354.36,0.00055068,120]
[358168335,1744814917487,-503.15351628,0.00055068,120]
[358168336,1744814917516,-500.0,0.00055068,120]
[358168337,1744814917542,-859.65,0.00055068,120]
[358168338,1744814917569,-500.0,0.00055068,120]
[358168339,1744814917596,-500.0,0.00055068,120]
[358168340,1744814917622,-522.31692435,0.00055068,120]
[358168341,1744814917647,-500.0,0.00055068,120]
[358168342,1744814917685,-1165.59,0.00055068,120]
[358168343,1744814917714,-500.0,0.00055068,120]
[358168344,1744814917742,-500.0,0.00055068,120]
[358168345,1744814917771,-500.0,0.00055068,120]
[358168346,1744814917798,-500.0,0.00055068,120]
[358168347,1744814917826,-500.0,0.00055068,120]
[358168348,1744814917853,-1550.92,0.00055068,120]
[358168349,1744814917881,-500.0,0.00055068,120]
[358168350,1744814917908,-500.0,0.00055068,120]
[358168351,1744814917936,-500.0,0.00055068,120]
[358168352,1744814917964,-545.63576533,0.00055068,120]
[358168353,1744814917990,-615.66658664,0.00055068,120]
[358168354,1744814918018,-500.0,0.00055068,120]
[358168355,1744814918047,-500.0,0.00055068,120]
[358168356,1744814918075,-500.0,0.00055068,120]
[358168357,1744814918103,-571.26971673,0.00055068,120]
[358168358,1744814918129,-500.0,0.00055068,120]
[358168359,1744814918156,-1327.19,0.00055068,35]
[358168360,1744814918182,-500.0,0.00055068,120]
[358168361,1744814918208,-500.0,0.00055068,30]
[358168362,1744814918236,-1239.55,0.00055068,120]
[358168363,1744814918264,-500.0,0.00055068,120]
[358168364,1744814918297,-1194.22,0.00055068,120]
[358168365,1744814918328,-500.0,0.00055068,120]
[358168366,1744814918357,-500.0,0.00055068,120]
[358168367,1744814918386,-500.0,0.00055068,120]
[358168368,1744814918415,-1406.48,0.00055068,120]
[358168369,1744814918443,-823.16,0.00055068,120]
[358168370,1744814918470,-500.0,0.00055068,120]
[358168371,1744814918501,-500.0,0.00055068,120]
[358168372,1744814918528,-610.03,0.00055068,120]
[358168373,1744814918556,-534.87489801,0.00055068,30]
[358168374,1744814918586,-1446.67,0.00055068,120]
[358168375,1744814918612,-630.87180426,0.00055068,120]
[358168376,1744814918639,-500.0,0.00055068,120]
[358168377,1744814918666,-500.0,0.00055068,120]
[358168378,1744814918692,-165.12424229,0.00055068,120]
[358168379,1744814918721,-1272.59,0.00055068,120]
[358168380,1744814918749,-500.0,0.00055068,120]
[358168381,1744814918776,-1436.95,0.00055068,120]
[358168382,1744814918803,-500.0,0.00055068,120]
[358168383,1744814918830,-500.0,0.00055068,120]
[358168384,1744814918858,-500.0,0.00055068,120]
[358168385,1744814918886,-500.0,0.00055068,120]
[358168386,1744814918913,-500.0,0.00055068,120]
[358168387,1744814918944,-500.0,0.00055068,120]
[358168388,1744814918972,-594.82167217,0.00055068,120]
[358168389,1744814919000,-500.0,0.00055068,120]
[358168390,1744814919028,-500.0,0.00055068,120]
[358168391,1744814919055,-500.0,0.00055068,120]
[358168392,1744814919082,-500.0,0.00055068,120]
[358168393,1744814919109,-500.0,0.00055068,120]
[358168394,1744814919136,-500.0,0.00055068,36]
[358168395,1744814919163,-1065.65,0.00055068,120]
[358168396,1744814919193,-500.0,0.00055068,120]
[358168397,1744814919221,-500.0,0.00055068,120]
[358168398,1744814919248,-500.0,0.00055068,120]
[358168399,1744814919275,-500.0,0.00055068,120]
[358168400,1744814919301,-500.0,0.00055068,120]
[358168401,1744814919329,-500.0,0.00055068,120]
[358168402,1744814919359,-1106.45,0.00055068,120]
[358168403,1744814919387,-500.0,0.00055068,120]
[358168404,1744814919414,-500.0,0.00055068,120]
[358168405,1744814919440,-500.0,0.00055068,120]
[358168406,1744814919468,-500.0,0.00055068,120]
[358168407,1744814919495,-1467.04,0.00055068,120]
[358168408,1744814919522,-500.0,0.00055068,120]
[358168409,1744814919549,-500.0,0.00055068,120]
[358168410,1744814919579,-500.0,0.00055068,120]
[358168411,1744814919607,-500.0,0.00055068,120]
[358168412,1744814919635,-500.0,0.00055068,120]
[358168413,1744814919662,-555.77346918,0.00055068,120]
[358168414,1744814919691,-556.41,0.00055068,120]
[358168415,1744814919929,-500.0,0.00055068,120]
[358168416,1744814919958,-500.0,0.00055068,120]
[358168417,1744814919985,-500.0,0.00055068,120]
[358168418,1744814920012,-500.0,0.00055068,120]
[358168419,1744814920039,-500.0,0.00055068,120]
[358168420,1744814920068,-500.0,0.00055068,120]
[358168421,1744814920108,-592.95571124,0.00055068,120]
[358168422,1744814920137,-1000.0,0.00055068,120]
[358168423,1744814920166,-500.0,0.00055068,120]
[358168424,1744814920194,-1902.3,0.00055068,120]
[358168425,1744814920225,-500.0,0.00055068,120]
[358168426,1744814920255,-1316.02,0.00055068,120]
[358168427,1744814920285,-557.68087647,0.00055068,120]
[358168428,1744814920315,-500.0,0.00055068,120]
[358168429,1744814920344,-500.0,0.00055068,120]
[358168430,1744814920373,-1734.75,0.00055068,120]
[358168431,1744814920403,-500.0,0.00055068,120]
[358168432,1744814920432,-500.0,0.00055068,120]
[358168433,1744814920460,-500.0,0.00055068,120]
[358168434,1744814920492,-500.0,0.00055068,120]
[358168435,1744814920523,-500.0,0.00055068,120]
[358168436,1744814920552,-507.05957847,0.00055068,120]
[358168437,1744814920582,-500.0,0.00055068,120]
[358168438,1744814920610,-500.0,0.00055068,120]
[358168439,1744814920639,-1956.07,0.00055068,120]
[358168440,1744814920666,-517.56330805,0.00055068,120]
[358168441,1744814920694,-500.0,0.00055068,120]
[358168442,1744814920726,-500.0,0.00055068,120]
[358168443,1744814920763,-500.0,0.00055068,120]
[358168444,1744814920793,-500.0,0.00055068,120]
[358168445,1744814920826,-541.93160792,0.00055068,120]
[358168446,1744814920855,-1151.52,0.00055068,120]
[358168447,1744814920883,-500.0,0.00055068,120]
[358168448,1744814920912,-1094.55,0.00055068,120]
[358168449,1744814920940,-500.0,0.00055068,120]
[358168450,1744814920968,-215.0849887,0.00055068,120]
[358168451,1744814920995,-760.37,0.00055068,120]
[358168452,1744814921021,-500.0,0.00055068,120]
[358168453,1744814921048,-500.0,0.00055068,120]
[358168454,1744814921075,-500.0,0.00055068,120]
[358168455,1744814921102,-500.0,0.00055068,120]
[358168456,1744814921129,-1445.11,0.00055068,120]
[358168457,1744814921156,-901.79,0.00055068,30]
[358168458,1744814921184,-2153.97,0.00055068,120]
[358168459,1744814921211,-500.0,0.00055068,120]
[358168460,1744814921238,-500.0,0.00055068,120]
[358168461,1744814921265,-500.0,0.00055068,120]
[358168462,1744814921293,-500.0,0.00055068,120]
[358168463,1744814921324,-500.00868536,0.00055068,120]
[358168464,1744814921352,-500.0,0.00055068,120]
[358168465,1744814921384,-500.0,0.00055068,120]
[358168466,1744814921413,-500.0,0.00055068,120]
[358168467,1744814921440,-500.0,0.00055068,120]
[358168468,1744814921469,-500.0,0.00055068,120]
[358168469,1744814921500,-500.0,0.00055068,120]
[358168470,1744814921528,-500.0,0.00055068,120]
[358168471,1744814921557,-500.0,0.00055068,120]
[358168472,1744814921588,-500.0,0.00055068,120]
[358168473,1744814921617,-500.0,0.00055068,120]
[358168474,1744814921646,-500.0,0.00055068,120]
[358168475,1744814921675,-596.40267594,0.00055068,120]